[Event "Live Chess"]
[Site "Chess.com"]
[Date "2023.05.20"]
[Round "-"]
[White "Greenbecker"]
[Black "OSmith06"]
[Result "1-0"]
[WhiteElo "1627"]
[BlackElo "1667"]
[TimeControl "300"]
[EndTime "12:28:18 PDT"]
[Termination "Greenbecker won by resignation"]

1. e4 {[%clk 0:04:55.4]} 1... c6 {[%clk 0:04:58.4]} 2. d4 {[%clk 0:04:53.9]}
2... d5 {[%clk 0:04:58.3]} 3. exd5 {[%clk 0:04:52.9]} 3... cxd5 {[%clk
0:04:58.2]} 4. Nf3 {[%clk 0:04:52.3]} 4... Nc6 {[%clk 0:04:57.1]} 5. Bd3 {[%clk
0:04:51.9]} 5... Bg4 {[%clk 0:04:55.6]} 6. c3 {[%clk 0:04:49.3]} 6... e5 {[%clk
0:04:49.3]} 7. dxe5 {[%clk 0:04:46.8]} 7... Nxe5 {[%clk 0:04:45.7]} 8. Qe2
{[%clk 0:04:44.6]} 8... Qe7 {[%clk 0:04:41.9]} 9. Qxe5 {[%clk 0:04:42.1]} 9...
Bxf3 {[%clk 0:04:34.2]} 10. Qxe7+ {[%clk 0:04:40.1]} 10... Bxe7 {[%clk
0:04:32.8]} 11. gxf3 {[%clk 0:04:39.4]} 1-0

[Event "Live Chess"]
[Site "Chess.com"]
[Date "2023.05.20"]
[Round "-"]
[White "GMHarry-youtube"]
[Black "GEMdzq"]
[Result "0-1"]
[WhiteElo "2104"]
[BlackElo "2257"]
[TimeControl "300"]
[EndTime "12:28:20 PDT"]
[Termination "GEMdzq won by checkmate"]

1. e4 {[%clk 0:04:58.4]} 1... d6 {[%clk 0:04:58.7]} 2. d4 {[%clk 0:04:57]} 2...
Nf6 {[%clk 0:04:58.1]} 3. Nc3 {[%clk 0:04:54.7]} 3... g6 {[%clk 0:04:57.5]} 4.
f4 {[%clk 0:04:53.4]} 4... Bg7 {[%clk 0:04:56.7]} 5. Bd3 {[%clk 0:04:52.2]} 5...
O-O {[%clk 0:04:52.9]} 6. h3 {[%clk 0:04:51.5]} 6... Na6 {[%clk 0:04:51.7]} 7.
a3 {[%clk 0:04:48.9]} 7... c5 {[%clk 0:04:50.8]} 8. d5 {[%clk 0:04:45.9]} 8...
Nc7 {[%clk 0:04:50.1]} 9. Be3 {[%clk 0:04:42.2]} 9... b5 {[%clk 0:04:33.8]} 10.
b4 {[%clk 0:04:33.3]} 10... c4 {[%clk 0:04:25.1]} 11. Be2 {[%clk 0:04:31.6]}
11... e6 {[%clk 0:04:07.2]} 12. Nf3 {[%clk 0:04:23.2]} 12... exd5 {[%clk
0:04:05.8]} 13. exd5 {[%clk 0:04:22.3]} 13... Re8 {[%clk 0:04:02.8]} 14. Bd4
{[%clk 0:04:20.4]} 14... Bb7 {[%clk 0:03:32.3]} 15. O-O {[%clk 0:04:11.3]} 15...
Nfxd5 {[%clk 0:03:31.1]} 16. Bxg7 {[%clk 0:04:08]} 16... Kxg7 {[%clk 0:03:31]}
17. Qd4+ {[%clk 0:04:05.9]} 17... Qf6 {[%clk 0:03:28.7]} 18. Nxd5 {[%clk
0:03:56.5]} 18... Nxd5 {[%clk 0:03:18.9]} 19. Rae1 {[%clk 0:03:45.6]} 19... Ne3
{[%clk 0:03:06.7]} 20. Rf2 {[%clk 0:03:36.5]} 20... Nxc2 {[%clk 0:03:00.6]} 21.
Qxf6+ {[%clk 0:03:32.4]} 21... Kxf6 {[%clk 0:03:00.5]} 22. Rc1 {[%clk
0:03:30.3]} 22... Ne3 {[%clk 0:02:33.4]} 23. g4 {[%clk 0:03:12.4]} 23... h5
{[%clk 0:02:19.5]} 24. g5+ {[%clk 0:03:10.6]} 24... Kg7 {[%clk 0:02:18.7]} 25.
Nd4 {[%clk 0:03:02.4]} 25... a6 {[%clk 0:02:17.6]} 26. a4 {[%clk 0:03:01.6]}
26... Re4 {[%clk 0:01:55.6]} 27. Nc2 {[%clk 0:02:46.6]} 27... Nxc2 {[%clk
0:01:52.2]} 28. Rxc2 {[%clk 0:02:45.8]} 28... Rd4 {[%clk 0:01:46.6]} 29. a5
{[%clk 0:02:12.1]} 29... Re8 {[%clk 0:01:44.4]} 30. Kf1 {[%clk 0:02:09.9]} 30...
Re3 {[%clk 0:01:41.7]} 31. h4 {[%clk 0:02:07]} 31... Rh3 {[%clk 0:01:37.2]} 32.
Ke1 {[%clk 0:01:58.3]} 32... Rh1+ {[%clk 0:01:30.9]} 33. Bf1 {[%clk 0:01:57.4]}
33... Rxh4 {[%clk 0:01:29.8]} 34. f5 {[%clk 0:01:49.8]} 34... Rhe4+ {[%clk
0:01:24.3]} 35. Rfe2 {[%clk 0:01:40.6]} 35... Rxe2+ {[%clk 0:01:22.4]} 36. Bxe2
{[%clk 0:01:40.5]} 36... gxf5 {[%clk 0:01:18.2]} 37. Bxh5 {[%clk 0:01:39.3]}
37... Be4 {[%clk 0:01:13]} 38. Rc3 {[%clk 0:01:30.1]} 38... Bd3 {[%clk
0:01:05.2]} 39. Kd2 {[%clk 0:01:25.7]} 39... Rh4 {[%clk 0:01:01.7]} 40. Bd1
{[%clk 0:01:22.7]} 40... d5 {[%clk 0:01:00.9]} 41. Rc1 {[%clk 0:01:20.9]} 41...
d4 {[%clk 0:00:59.8]} 42. Ra1 {[%clk 0:01:17.2]} 42... Rh2+ {[%clk 0:00:58.9]}
43. Kc1 {[%clk 0:01:15.9]} 43... c3 {[%clk 0:00:56.3]} 44. g6 {[%clk 0:01:14.4]}
44... fxg6 {[%clk 0:00:55.1]} 45. Ra3 {[%clk 0:01:01.5]} 45... Bc4 {[%clk
0:00:33.9]} 46. Kb1 {[%clk 0:00:54.5]} 46... Rh1 {[%clk 0:00:32.1]} 47. Kc2
{[%clk 0:00:51.8]} 47... d3+ {[%clk 0:00:30.6]} 48. Kxc3 {[%clk 0:00:47.4]}
48... Rxd1 {[%clk 0:00:27]} 49. Kb2 {[%clk 0:00:46.8]} 49... Rh1 {[%clk
0:00:25]} 50. Rc3 {[%clk 0:00:45.2]} 50... d2 {[%clk 0:00:24.3]} 51. Rc2 {[%clk
0:00:31.2]} 51... d1=Q {[%clk 0:00:23]} 52. Ka3 {[%clk 0:00:31.1]} 52... Qa1+
{[%clk 0:00:22]} 53. Ra2 {[%clk 0:00:30.4]} 53... Qxa2# {[%clk 0:00:21.3]} 0-1

[Event "Live Chess"]
[Site "Chess.com"]
[Date "2023.05.20"]
[Round "-"]
[White "thrithik"]
[Black "LodeshChess"]
[Result "0-1"]
[WhiteElo "381"]
[BlackElo "1020"]
[TimeControl "300"]
[EndTime "12:28:23 PDT"]
[Termination "LodeshChess won by checkmate"]

1. g3 {[%clk 0:04:59.1]} 1... d5 {[%clk 0:04:58.5]} 2. h3 {[%clk 0:04:58.7]}
2... e5 {[%clk 0:04:57.9]} 3. Nf3 {[%clk 0:04:57.1]} 3... Nc6 {[%clk 0:04:55.9]}
4. Nxe5 {[%clk 0:04:55.6]} 4... Nxe5 {[%clk 0:04:54.5]} 5. f4 {[%clk 0:04:53]}
5... Nc4 {[%clk 0:04:51.2]} 6. d3 {[%clk 0:04:50.2]} 6... Nb6 {[%clk 0:04:49.4]}
7. b4 {[%clk 0:04:48.3]} 7... Bxb4+ {[%clk 0:04:46.4]} 8. Nc3 {[%clk 0:04:37.2]}
8... Bxc3+ {[%clk 0:04:44.3]} 9. Bd2 {[%clk 0:04:35.2]} 9... Bxa1 {[%clk
0:04:43.4]} 10. Qxa1 {[%clk 0:04:32.5]} 10... Be6 {[%clk 0:04:42]} 11. Qb1
{[%clk 0:04:29.6]} 11... Ne7 {[%clk 0:04:37.7]} 12. Qb4 {[%clk 0:04:21.7]} 12...
O-O {[%clk 0:04:32.4]} 13. Bg2 {[%clk 0:04:13.7]} 13... Nc6 {[%clk 0:04:29.2]}
14. O-O {[%clk 0:04:07.4]} 14... Nxb4 {[%clk 0:04:26.3]} 15. Bxb4 {[%clk
0:04:03.2]} 15... Re8 {[%clk 0:04:23.6]} 16. Ba5 {[%clk 0:03:57.4]} 16... Qd6
{[%clk 0:04:18.5]} 17. Bc3 {[%clk 0:03:51.6]} 17... Na4 {[%clk 0:04:10.3]} 18.
Ba5 {[%clk 0:03:45.1]} 18... Qc5+ {[%clk 0:04:06.5]} 19. Rf2 {[%clk 0:03:38.6]}
19... Qxa5 {[%clk 0:04:05.4]} 20. e4 {[%clk 0:03:27.9]} 20... Qe1+ {[%clk
0:03:55]} 21. Kh2 {[%clk 0:03:23.3]} 21... Qxf2 {[%clk 0:03:53.4]} 22. Kh1
{[%clk 0:03:18.9]} 22... dxe4 {[%clk 0:03:39.8]} 23. dxe4 {[%clk 0:03:15]} 23...
Nc3 {[%clk 0:03:37.9]} 24. a3 {[%clk 0:03:11.4]} 24... Ne2 {[%clk 0:03:37.4]}
25. Kh2 {[%clk 0:03:07.4]} 25... Qg1# {[%clk 0:03:35.4]} 0-1

[Event "Live Chess"]
[Site "Chess.com"]
[Date "2023.05.20"]
[Round "-"]
[White "booktrunk"]
[Black "bristolunichess"]
[Result "0-1"]
[WhiteElo "1319"]
[BlackElo "1773"]
[TimeControl "300"]
[EndTime "12:28:33 PDT"]
[Termination "bristolunichess won by resignation"]

1. d4 {[%clk 0:04:58.7]} 1... Nf6 {[%clk 0:04:57.6]} 2. Nf3 {[%clk 0:04:55.5]}
2... g6 {[%clk 0:04:57.1]} 3. Bf4 {[%clk 0:04:53.8]} 3... Bg7 {[%clk 0:04:56.8]}
4. h3 {[%clk 0:04:52.8]} 4... d6 {[%clk 0:04:55.4]} 5. c3 {[%clk 0:04:49.2]}
5... O-O {[%clk 0:04:55]} 6. e3 {[%clk 0:04:46.8]} 6... Qe8 {[%clk 0:04:53.8]}
7. Qc2 {[%clk 0:04:44.7]} 7... Nbd7 {[%clk 0:04:52.5]} 8. Bd3 {[%clk 0:04:43]}
8... e5 {[%clk 0:04:44.4]} 9. dxe5 {[%clk 0:04:41.9]} 9... dxe5 {[%clk
0:04:44.3]} 10. Bg5 {[%clk 0:04:34.4]} 10... e4 {[%clk 0:04:43.2]} 11. Bxf6
{[%clk 0:04:33.3]} 11... Nxf6 {[%clk 0:04:43.1]} 12. Bxe4 {[%clk 0:04:28.1]}
12... Nxe4 {[%clk 0:04:41.8]} 13. O-O {[%clk 0:04:27.1]} 13... Bf5 {[%clk
0:04:41.1]} 14. Qe2 {[%clk 0:04:25.3]} 14... Rd8 {[%clk 0:04:38.1]} 15. Na3
{[%clk 0:04:21.8]} 15... a6 {[%clk 0:04:28.8]} 16. Nc4 {[%clk 0:04:20.6]} 16...
b5 {[%clk 0:04:27.1]} 17. Na5 {[%clk 0:04:18.3]} 17... c5 {[%clk 0:04:23]} 18.
Rad1 {[%clk 0:04:13.9]} 18... c4 {[%clk 0:03:59.1]} 19. g4 {[%clk 0:04:10.7]}
19... Bc8 {[%clk 0:03:57.5]} 20. Nd4 {[%clk 0:04:03.2]} 20... Nc5 {[%clk
0:03:43.1]} 21. Nac6 {[%clk 0:03:58.3]} 21... Rd6 {[%clk 0:03:36.8]} 22. Nb4
{[%clk 0:03:53.4]} 22... Bb7 {[%clk 0:03:32.5]} 23. a3 {[%clk 0:03:44.1]} 23...
f5 {[%clk 0:03:30.7]} 24. gxf5 {[%clk 0:03:38.2]} 24... gxf5 {[%clk 0:02:43.7]}
25. f3 {[%clk 0:03:36.4]} 25... a5 {[%clk 0:02:38.4]} 26. Nbc2 {[%clk
0:03:33.2]} 26... Rg6+ {[%clk 0:02:34.5]} 27. Kf2 {[%clk 0:03:31.2]} 27... Nd3+
{[%clk 0:02:31.6]} 28. Rxd3 {[%clk 0:03:27.9]} 28... cxd3 {[%clk 0:02:31.5]} 29.
Qxd3 {[%clk 0:03:27]} 29... Be4 {[%clk 0:02:17.9]} 30. fxe4 {[%clk 0:03:19.5]}
30... fxe4+ {[%clk 0:02:15.6]} 0-1

[Event "Live Chess"]
[Site "Chess.com"]
[Date "2023.05.20"]
[Round "-"]
[White "TobyQuaite"]
[Black "ramses-IIG"]
[Result "1-0"]
[WhiteElo "1693"]
[BlackElo "810"]
[TimeControl "300"]
[EndTime "12:28:46 PDT"]
[Termination "TobyQuaite won by checkmate"]

1. e4 {[%clk 0:04:58.5]} 1... d5 {[%clk 0:04:59.9]} 2. exd5 {[%clk 0:04:57.5]}
2... Qxd5 {[%clk 0:04:59.8]} 3. Nc3 {[%clk 0:04:56.6]} 3... Qe6+ {[%clk
0:04:59.7]} 4. Qe2 {[%clk 0:04:55.2]} 4... Qg6 {[%clk 0:04:59.6]} 5. Nf3 {[%clk
0:04:52.5]} 5... Qxc2 {[%clk 0:04:55.6]} 6. Qd3 {[%clk 0:04:47.5]} 6... Qxd3
{[%clk 0:04:53.1]} 7. Bxd3 {[%clk 0:04:47.4]} 7... c6 {[%clk 0:04:51]} 8. O-O
{[%clk 0:04:46.9]} 8... f6 {[%clk 0:04:46.7]} 9. Re1 {[%clk 0:04:45.3]} 9... e5
{[%clk 0:04:46.6]} 10. Bc2 {[%clk 0:04:38.6]} 10... Bb4 {[%clk 0:04:43.1]} 11.
d4 {[%clk 0:04:37.2]} 11... Nd7 {[%clk 0:04:38.1]} 12. a3 {[%clk 0:04:35.3]}
12... Bxc3 {[%clk 0:04:36]} 13. bxc3 {[%clk 0:04:35.2]} 13... Ne7 {[%clk
0:04:32.9]} 14. dxe5 {[%clk 0:04:34.4]} 14... fxe5 {[%clk 0:04:30.8]} 15. Nxe5
{[%clk 0:04:34.3]} 15... O-O {[%clk 0:04:26.9]} 16. Bb3+ {[%clk 0:04:31.3]}
16... Kh8 {[%clk 0:04:19]} 17. Nf7+ {[%clk 0:04:28.2]} 17... Kg8 {[%clk
0:04:05.2]} 18. Rxe7 {[%clk 0:04:26.6]} 18... Nc5 {[%clk 0:03:51.8]} 19. Bc4
{[%clk 0:04:11.7]} 19... b5 {[%clk 0:03:48.8]} 20. Ba2 {[%clk 0:03:54]} 20...
Nd3 {[%clk 0:03:31.9]} 21. Ne5+ {[%clk 0:03:50.5]} 21... Kh8 {[%clk 0:03:22.5]}
22. Nxd3 {[%clk 0:03:48.1]} 22... h6 {[%clk 0:03:16.7]} 23. Ne5 {[%clk
0:03:37.7]} 23... Rf5 {[%clk 0:03:11]} 24. Bxh6 {[%clk 0:03:26.1]} 24... gxh6
{[%clk 0:03:07.5]} 25. Ng6# {[%clk 0:03:25.4]} 1-0

[Event "Live Chess"]
[Site "Chess.com"]
[Date "2023.05.20"]
[Round "-"]
[White "WilliamofOrange16th"]
[Black "atunnacl"]
[Result "0-1"]
[WhiteElo "1855"]
[BlackElo "1800"]
[TimeControl "300"]
[EndTime "12:28:53 PDT"]
[Termination "atunnacl won by checkmate"]

1. e4 {[%clk 0:04:58.6]} 1... c5 {[%clk 0:04:57.9]} 2. b4 {[%clk 0:04:53.3]}
2... cxb4 {[%clk 0:04:47.9]} 3. a3 {[%clk 0:04:52]} 3... bxa3 {[%clk 0:04:45.5]}
4. d4 {[%clk 0:04:49.3]} 4... d6 {[%clk 0:04:44]} 5. Nxa3 {[%clk 0:04:46]} 5...
Nc6 {[%clk 0:04:39]} 6. Nf3 {[%clk 0:04:38.5]} 6... a6 {[%clk 0:04:37.2]} 7. c3
{[%clk 0:04:37]} 7... Nf6 {[%clk 0:04:32.9]} 8. Bd3 {[%clk 0:04:36.1]} 8... g6
{[%clk 0:04:22.8]} 9. O-O {[%clk 0:04:34.8]} 9... Bg7 {[%clk 0:04:20.6]} 10. Nc2
{[%clk 0:04:29.8]} 10... O-O {[%clk 0:04:16.2]} 11. h3 {[%clk 0:04:26.5]} 11...
e6 {[%clk 0:04:09.7]} 12. Be3 {[%clk 0:04:25]} 12... b5 {[%clk 0:04:06.5]} 13.
Qd2 {[%clk 0:04:22.9]} 13... Na5 {[%clk 0:03:54.8]} 14. Rfb1 {[%clk 0:04:18.8]}
14... Nc4 {[%clk 0:03:49.5]} 15. Bxc4 {[%clk 0:04:18]} 15... bxc4 {[%clk
0:03:47.5]} 16. Bh6 {[%clk 0:04:17.2]} 16... Nxe4 {[%clk 0:03:34.7]} 17. Qe3
{[%clk 0:04:14]} 17... Nxc3 {[%clk 0:03:29.8]} 18. Bxg7 {[%clk 0:04:10.1]} 18...
Nxb1 {[%clk 0:03:25.8]} 19. Bxf8 {[%clk 0:04:08.9]} 19... Qxf8 {[%clk
0:03:22.3]} 20. Rxb1 {[%clk 0:04:07.7]} 20... a5 {[%clk 0:03:17.8]} 21. Qc3
{[%clk 0:03:43.7]} 21... d5 {[%clk 0:03:03.5]} 22. Ra1 {[%clk 0:03:38.6]} 22...
a4 {[%clk 0:03:00.8]} 23. Ra3 {[%clk 0:03:31.1]} 23... Bd7 {[%clk 0:02:54.7]}
24. Ne5 {[%clk 0:03:26.1]} 24... Be8 {[%clk 0:02:48.4]} 25. Ne3 {[%clk
0:03:15.2]} 25... Rb8 {[%clk 0:02:39.5]} 26. Qc2 {[%clk 0:02:57.9]} 26... Qxa3
{[%clk 0:02:35.7]} 27. N3g4 {[%clk 0:02:52]} 27... Kg7 {[%clk 0:02:27.4]} 28.
Qd2 {[%clk 0:02:45.6]} 28... Kf8 {[%clk 0:01:56.9]} 29. Qg5 {[%clk 0:01:48.8]}
29... h5 {[%clk 0:01:48.5]} 30. Nxg6+ {[%clk 0:01:19.6]} 30... fxg6 {[%clk
0:01:45.8]} 31. Qf6+ {[%clk 0:01:18.7]} 31... Kg8 {[%clk 0:01:41.6]} 32. Nh6+
{[%clk 0:01:12.8]} 32... Kh7 {[%clk 0:01:37.3]} 33. g4 {[%clk 0:00:58]} 33...
Qxh3 {[%clk 0:01:25.7]} 34. g5 {[%clk 0:00:55.1]} 34... Rb1# {[%clk 0:01:21.5]}
0-1

[Event "Live Chess"]
[Site "Chess.com"]
[Date "2023.05.20"]
[Round "-"]
[White "chessfiction"]
[Black "Reggie016"]
[Result "1-0"]
[WhiteElo "2409"]
[BlackElo "1091"]
[TimeControl "300"]
[EndTime "12:28:57 PDT"]
[Termination "chessfiction won by checkmate"]

1. e4 {[%clk 0:04:59.5]} 1... e6 {[%clk 0:04:58.5]} 2. d4 {[%clk 0:04:57.9]}
2... d5 {[%clk 0:04:57.4]} 3. Nc3 {[%clk 0:04:57.8]} 3... Bb4 {[%clk 0:04:54.7]}
4. e5 {[%clk 0:04:56.6]} 4... Ne7 {[%clk 0:04:53.1]} 5. Qg4 {[%clk 0:04:51.5]}
5... O-O {[%clk 0:04:50.9]} 6. Bd3 {[%clk 0:04:49.2]} 6... Ng6 {[%clk
0:04:32.2]} 7. Nf3 {[%clk 0:04:47.6]} 7... c5 {[%clk 0:04:21.9]} 8. h4 {[%clk
0:04:45.6]} 8... cxd4 {[%clk 0:04:04.8]} 9. h5 {[%clk 0:04:42.4]} 9... dxc3
{[%clk 0:03:58.2]} 10. Qxb4 {[%clk 0:04:41.2]} 10... cxb2 {[%clk 0:03:41.5]} 11.
Bxb2 {[%clk 0:04:39]} 11... Ne7 {[%clk 0:03:32.3]} 12. Rh3 {[%clk 0:04:37.3]}
12... Nbc6 {[%clk 0:03:26.5]} 13. Qg4 {[%clk 0:04:34.4]} 13... Nf5 {[%clk
0:03:13.4]} 14. Ba3 {[%clk 0:04:28]} 14... Re8 {[%clk 0:03:02.3]} 15. Kf1 {[%clk
0:04:26.3]} 15... Qb6 {[%clk 0:02:46.3]} 16. h6 {[%clk 0:04:23.8]} 16... g6
{[%clk 0:02:38.2]} 17. Qg5 {[%clk 0:04:21.4]} 17... Qd8 {[%clk 0:02:15.7]} 18.
Qf4 {[%clk 0:04:16.7]} 18... b5 {[%clk 0:02:07.7]} 19. g4 {[%clk 0:04:15.5]}
19... b4 {[%clk 0:02:05.9]} 20. gxf5 {[%clk 0:04:13.7]} 20... bxa3 {[%clk
0:02:03.4]} 21. fxg6 {[%clk 0:04:13.1]} 21... fxg6 {[%clk 0:01:58.5]} 22. Bxg6
{[%clk 0:04:09.9]} 22... hxg6 {[%clk 0:01:56.5]} 23. h7+ {[%clk 0:04:09.3]}
23... Kg7 {[%clk 0:01:51]} 24. Qh6+ {[%clk 0:04:08.3]} 24... Kf7 {[%clk
0:01:49.2]} 25. Ng5+ {[%clk 0:04:07.5]} 25... Ke7 {[%clk 0:01:46.6]} 26. Qg7#
{[%clk 0:04:06.6]} 1-0

[Event "Live Chess"]
[Site "Chess.com"]
[Date "2023.05.20"]
[Round "-"]
[White "JackRudd"]
[Black "Leonid_Starozhilov"]
[Result "1/2-1/2"]
[WhiteElo "2459"]
[BlackElo "2644"]
[TimeControl "300"]
[EndTime "12:28:59 PDT"]
[Termination "Game drawn by agreement"]

1. e4 {[%clk 0:04:58.9]} 1... Nc6 {[%clk 0:04:58.2]} 2. d4 {[%clk 0:04:57.5]}
2... d6 {[%clk 0:04:58.1]} 3. Nf3 {[%clk 0:04:54.7]} 3... Nf6 {[%clk 0:04:57.4]}
4. c4 {[%clk 0:04:51.3]} 4... Bg4 {[%clk 0:04:54.7]} 5. d5 {[%clk 0:04:50.1]}
5... Bxf3 {[%clk 0:04:51.6]} 6. gxf3 {[%clk 0:04:48.7]} 6... Nb8 {[%clk
0:04:49.9]} 7. Nc3 {[%clk 0:04:47.3]} 7... g6 {[%clk 0:04:48.7]} 8. f4 {[%clk
0:04:44.3]} 8... Bg7 {[%clk 0:04:47.4]} 9. e5 {[%clk 0:04:42.9]} 9... Nfd7
{[%clk 0:04:43.7]} 10. e6 {[%clk 0:04:40.6]} 10... fxe6 {[%clk 0:04:42.3]} 11.
dxe6 {[%clk 0:04:39.9]} 11... Nc5 {[%clk 0:04:41.8]} 12. Qg4 {[%clk 0:04:32.9]}
12... Qc8 {[%clk 0:04:20]} 13. f5 {[%clk 0:04:30.6]} 13... Bxc3+ {[%clk
0:04:15.4]} 14. bxc3 {[%clk 0:04:28.7]} 14... gxf5 {[%clk 0:04:14.8]} 15. Qh5+
{[%clk 0:04:21.6]} 15... Kd8 {[%clk 0:04:13.8]} 16. Be3 {[%clk 0:04:20.2]} 16...
Qxe6 {[%clk 0:04:09.5]} 17. Bh3 {[%clk 0:04:15]} 17... Qe4 {[%clk 0:03:46.1]}
18. Rg1 {[%clk 0:04:02.8]} 18... Qxc4 {[%clk 0:03:32.2]} 19. Bd4 {[%clk
0:03:58.6]} 19... Rf8 {[%clk 0:02:55.8]} 20. Qxh7 {[%clk 0:03:46.4]} 20... Nbd7
{[%clk 0:02:35.1]} 21. Bxf5 {[%clk 0:03:43]} 21... c6 {[%clk 0:02:24.9]} 22. Rd1
{[%clk 0:03:25.4]} 22... Kc7 {[%clk 0:02:06.7]} 23. Rg3 {[%clk 0:03:09.2]} 23...
Rxf5 {[%clk 0:01:49.6]} 24. Qxf5 {[%clk 0:03:07.3]} 24... Rf8 {[%clk 0:01:48.7]}
25. Qc2 {[%clk 0:03:04]} 25... Ne6 {[%clk 0:01:39.4]} 26. Qb3 {[%clk 0:02:56.6]}
26... b5 {[%clk 0:01:29.3]} 27. Qxc4 {[%clk 0:02:51]} 27... bxc4 {[%clk
0:01:26.9]} 28. Re3 {[%clk 0:02:50]} 28... Nxd4 {[%clk 0:01:10]} 29. Rxd4 {[%clk
0:02:47.6]} 29... Ne5 {[%clk 0:01:09.1]} 30. Rxe5 {[%clk 0:02:45.4]} 30... dxe5
{[%clk 0:01:08]} 31. Rxc4 {[%clk 0:02:44.7]} 31... Kd6 {[%clk 0:01:04.6]} 32.
Ra4 {[%clk 0:02:42.4]} 32... Rh8 {[%clk 0:01:00.4]} 33. h4 {[%clk 0:02:41.3]}
33... Kd5 {[%clk 0:00:55.2]} 34. f3 {[%clk 0:02:40.3]} 34... c5 {[%clk
0:00:51.6]} 35. Kf2 {[%clk 0:02:38.7]} 35... c4 {[%clk 0:00:48.3]} 36. Kg3
{[%clk 0:02:37.3]} 36... Rg8+ {[%clk 0:00:47.7]} 37. Kh3 {[%clk 0:02:36.4]}
37... Rg1 {[%clk 0:00:46.6]} 38. Rxa7 {[%clk 0:02:34.4]} 38... Ke6 {[%clk
0:00:42.4]} 39. Rc7 {[%clk 0:02:29.5]} 39... Ra1 {[%clk 0:00:38.2]} 40. Rxc4
{[%clk 0:02:27.3]} 40... Rxa2 {[%clk 0:00:37.5]} 41. Kg3 {[%clk 0:02:23.9]}
41... Kf5 {[%clk 0:00:36.4]} 42. Rc7 {[%clk 0:02:21]} 42... Kf6 {[%clk
0:00:31.4]} 43. c4 {[%clk 0:02:18.6]} 43... Ra3 {[%clk 0:00:30.7]} 44. Kg4
{[%clk 0:02:16]} 44... Ra1 {[%clk 0:00:29.8]} 45. Rc6+ {[%clk 0:02:14.5]} 45...
e6 {[%clk 0:00:28.5]} 46. c5 {[%clk 0:02:12.6]} 46... Rg1+ {[%clk 0:00:27.4]}
47. Kh3 {[%clk 0:02:11.7]} 47... Rf1 {[%clk 0:00:26.1]} 48. Kg2 {[%clk
0:02:10.4]} 48... Rc1 {[%clk 0:00:25]} 49. Rc8 {[%clk 0:02:08.9]} 49... Rc2+
{[%clk 0:00:23.4]} 50. Kg3 {[%clk 0:02:07.5]} 50... Rc3 {[%clk 0:00:23]} 51. c6
{[%clk 0:02:02.8]} 51... e4 {[%clk 0:00:21.4]} 52. c7 {[%clk 0:02:00.7]} 52...
Kg7 {[%clk 0:00:20.6]} 53. h5 {[%clk 0:01:57.8]} 53... exf3 {[%clk 0:00:20]} 54.
h6+ {[%clk 0:01:52.3]} 54... Kh7 {[%clk 0:00:19.4]} 55. Kf2 {[%clk 0:01:51.2]}
55... e5 {[%clk 0:00:18.8]} 56. Kg3 {[%clk 0:01:50.2]} 56... e4 {[%clk
0:00:18.4]} 57. Kf2 {[%clk 0:01:49.5]} 57... Rc2+ {[%clk 0:00:17.7]} 58. Ke3
{[%clk 0:01:48.8]} 58... f2 {[%clk 0:00:17.1]} 59. Rf8 {[%clk 0:01:47.7]} 59...
Rxc7 {[%clk 0:00:16]} 60. Rxf2 {[%clk 0:01:46.6]} 60... Kxh6 {[%clk 0:00:15.3]}
61. Kxe4 {[%clk 0:01:46]} 61... Rc5 {[%clk 0:00:12.8]} 1/2-1/2

[Event "Live Chess"]
[Site "Chess.com"]
[Date "2023.05.20"]
[Round "-"]
[White "MrBlond89"]
[Black "smoggyrabbit"]
[Result "0-1"]
[WhiteElo "1306"]
[BlackElo "1652"]
[TimeControl "300"]
[EndTime "12:29:03 PDT"]
[Termination "smoggyrabbit won by resignation"]

1. e4 {[%clk 0:04:56.9]} 1... e6 {[%clk 0:04:59]} 2. c3 {[%clk 0:04:55.4]} 2...
d5 {[%clk 0:04:57.4]} 3. exd5 {[%clk 0:04:53.8]} 3... exd5 {[%clk 0:04:56.5]} 4.
d4 {[%clk 0:04:52.8]} 4... c6 {[%clk 0:04:52.2]} 5. Nf3 {[%clk 0:04:51.8]} 5...
Bd6 {[%clk 0:04:51.3]} 6. Bd3 {[%clk 0:04:48]} 6... Ne7 {[%clk 0:04:50.2]} 7.
O-O {[%clk 0:04:46.9]} 7... O-O {[%clk 0:04:48.1]} 8. Bg5 {[%clk 0:04:46.2]}
8... f6 {[%clk 0:04:46.9]} 9. Bh4 {[%clk 0:04:42.4]} 9... Bf5 {[%clk 0:04:45.8]}
10. Re1 {[%clk 0:04:29.9]} 10... Bxd3 {[%clk 0:04:42]} 11. Qxd3 {[%clk
0:04:28.9]} 11... Na6 {[%clk 0:04:27.5]} 12. Nbd2 {[%clk 0:04:17.3]} 12... Qd7
{[%clk 0:04:22.3]} 13. Bxf6 {[%clk 0:04:04.2]} 13... Rxf6 {[%clk 0:04:08.5]} 14.
Ng5 {[%clk 0:04:03]} 14... Qf5 {[%clk 0:03:55]} 15. Qxf5 {[%clk 0:03:44.2]}
15... Rxf5 {[%clk 0:03:54]} 16. Ndf3 {[%clk 0:03:42]} 16... h6 {[%clk
0:03:15.6]} 17. Ne6 {[%clk 0:03:34.5]} 17... Ng6 {[%clk 0:03:11.4]} 18. h4
{[%clk 0:03:16.8]} 18... Re8 {[%clk 0:03:02.5]} 19. Re2 {[%clk 0:03:04.7]} 19...
Rf7 {[%clk 0:02:07.5]} 20. Rae1 {[%clk 0:02:55.7]} 20... Rfe7 {[%clk 0:02:06.2]}
21. h5 {[%clk 0:02:45.8]} 21... Nf8 {[%clk 0:02:00.2]} 22. Nxf8 {[%clk
0:02:39.3]} 22... Rxe2 {[%clk 0:01:58.2]} 23. Rxe2 {[%clk 0:02:34.7]} 23... Rxe2
{[%clk 0:01:56.6]} 24. Ng6 {[%clk 0:02:34.2]} 24... Rxb2 {[%clk 0:01:53.9]} 25.
Nge5 {[%clk 0:02:31.9]} 25... Rxa2 {[%clk 0:01:49]} 26. g4 {[%clk 0:02:29.9]}
26... Nc7 {[%clk 0:01:44.9]} 27. Nh4 {[%clk 0:02:24.3]} 27... a5 {[%clk
0:01:33.9]} 28. f4 {[%clk 0:02:23.1]} 28... a4 {[%clk 0:01:32.3]} 29. f5 {[%clk
0:02:20.9]} 29... a3 {[%clk 0:01:30.5]} 30. f6 {[%clk 0:02:02.3]} 30... gxf6
{[%clk 0:01:28.9]} 31. Nd7 {[%clk 0:01:57]} 31... Rc2 {[%clk 0:01:20.7]} 32.
Nxf6+ {[%clk 0:01:55.1]} 32... Kf7 {[%clk 0:01:18.5]} 33. Nf5 {[%clk 0:01:37.1]}
33... a2 {[%clk 0:01:14.2]} 0-1